[Event "Titled Tuesday Blitz February 21 Early 2023"]
[White "Le, Tuan Minh"]
[Black "Caruana, Fabiano"]
[WhiteFideId "12401153"]
[BlackFideId "2020009"]
[WhiteElo "2542"]
[BlackElo "2764"]
[Result "1/2-1/2"]
[Round "11"]
[TimeControl "180+2"]
[Date "2023.02.21"]
[WhiteClock "0:00:07"]
[BlackClock "0:00:18"]

1. d4 {[%clk 0:03:00]}  Nf6 {[%clk 0:02:59]} 2. Nf3 {[%clk 0:03:01]}  d5 {[%clk 0:02:59]} 3. Bg5 {[%clk 0:03:01]}  Ne4 {[%clk 0:02:58]} 4. Bf4 {[%clk 0:03:01]}  c6 {[%clk 0:02:53]} 5. Nbd2 {[%clk 0:02:57]}  Bf5 {[%clk 0:02:53]} 6. e3 {[%clk 0:02:53]}  e6 {[%clk 0:02:52]} 7. Nxe4 {[%clk 0:02:51]}  Bxe4 {[%clk 0:02:52]} 8. Bd3 {[%clk 0:02:51]}  Bxd3 {[%clk 0:02:47]} 9. Qxd3 {[%clk 0:02:52]}  Nd7 {[%clk 0:02:46]} 10. O-O {[%clk 0:02:47]}  Be7 {[%clk 0:02:46]} 11. e4 {[%clk 0:02:40]}  O-O {[%clk 0:02:45]} 12. c3 {[%clk 0:02:34]}  Nf6 {[%clk 0:02:39]} 13. e5 {[%clk 0:02:31]}  Ne4 {[%clk 0:02:38]} 14. Ne1 {[%clk 0:02:02]}  f6 {[%clk 0:02:35]} 15. f3 {[%clk 0:01:57]}  fxe5 {[%clk 0:02:35]} 16. Bxe5 {[%clk 0:01:58]}  Nd6 {[%clk 0:02:34]} 17. Qe2 {[%clk 0:01:57]}  Qd7 {[%clk 0:02:06]} 18. Nd3 {[%clk 0:01:57]}  Nf7 {[%clk 0:02:06]} 19. Rae1 {[%clk 0:01:54]}  Rae8 {[%clk 0:01:51]} 20. f4 {[%clk 0:01:25]}  Nxe5 {[%clk 0:01:43]} 21. Qxe5 {[%clk 0:01:18]}  Bd6 {[%clk 0:01:42]} 22. Qh5 {[%clk 0:01:16]}  Qf7 {[%clk 0:01:39]} 23. Qf3 {[%clk 0:01:10]}  Qg6 {[%clk 0:01:31]} 24. Re3 {[%clk 0:01:06]}  Rf6 {[%clk 0:01:28]} 25. Ne5 {[%clk 0:00:57]}  Bxe5 {[%clk 0:01:26]} 26. Rxe5 {[%clk 0:00:58]}  Ref8 {[%clk 0:01:25]} 27. g3 {[%clk 0:00:39]}  Qc2 {[%clk 0:01:18]} 28. Re2 {[%clk 0:00:34]}  Qf5 {[%clk 0:01:13]} 29. Qe3 {[%clk 0:00:21]}  Qg4 {[%clk 0:01:09]} 30. Ref2 {[%clk 0:00:16]}  h5 {[%clk 0:01:08]} 31. Qf3 {[%clk 0:00:17]}  Qxf3 {[%clk 0:01:06]} 32. Rxf3 {[%clk 0:00:18]}  g5 {[%clk 0:01:06]} 33. Kg2 {[%clk 0:00:18]}  gxf4 {[%clk 0:00:54]} 34. Kh3 {[%clk 0:00:18]}  Kg7 {[%clk 0:00:54]} 35. gxf4 {[%clk 0:00:15]}  R8f7 {[%clk 0:00:36]} 36. Kh4 {[%clk 0:00:16]}  Rf5 {[%clk 0:00:36]} 37. h3 {[%clk 0:00:12]}  b6 {[%clk 0:00:37]} 38. Kg3 {[%clk 0:00:13]}  c5 {[%clk 0:00:36]} 39. Rd1 {[%clk 0:00:12]}  a5 {[%clk 0:00:34]} 40. a4 {[%clk 0:00:13]}  Kf6 {[%clk 0:00:32]} 41. Rd2 {[%clk 0:00:11]}  Rg7+ {[%clk 0:00:32]} 42. Kh2 {[%clk 0:00:10]}  h4 {[%clk 0:00:32]} 43. Rg2 {[%clk 0:00:08]}  cxd4 {[%clk 0:00:25]} 44. cxd4 {[%clk 0:00:07]}  Rc7 {[%clk 0:00:25]} 45. Re2 {[%clk 0:00:04]}  Rc4 {[%clk 0:00:21]} 46. Rfe3 {[%clk 0:00:04]}  Rc6 {[%clk 0:00:22]} 47. Rf3 {[%clk 0:00:04]}  Kf7 {[%clk 0:00:22]} 48. b3 {[%clk 0:00:04]}  Ke7 {[%clk 0:00:20]} 49. Kg2 {[%clk 0:00:05]}  Kd6 {[%clk 0:00:20]} 50. Kf2 {[%clk 0:00:05]}  Rf6 {[%clk 0:00:19]} 51. Kg2 {[%clk 0:00:06]}  Rc8 {[%clk 0:00:19]} 52. Rfe3 {[%clk 0:00:05]}  Rg8+ {[%clk 0:00:19]} 53. Kh2 {[%clk 0:00:05]}  Rgg6 {[%clk 0:00:19]} 54. Rf3 {[%clk 0:00:05]}  Rf5 {[%clk 0:00:19]} 55. Rc2 {[%clk 0:00:06]}  Rgf6 {[%clk 0:00:18]} 56. Rcf2 {[%clk 0:00:06]}  Rf7 {[%clk 0:00:19]} 57. Kg2 {[%clk 0:00:06]}  R5f6 {[%clk 0:00:19]} 58. Kf1 {[%clk 0:00:07]}  Rg7 {[%clk 0:00:19]} 59. Ke2 {[%clk 0:00:08]}  Rfg6 {[%clk 0:00:18]} 60. f5 {[%clk 0:00:08]}  exf5 {[%clk 0:00:18]} 61. Rxf5 {[%clk 0:00:08]}  Re6+ {[%clk 0:00:19]} 62. Kd2 {[%clk 0:00:09]}  Rg3 {[%clk 0:00:19]} 63. R5f3 {[%clk 0:00:10]}  Reg6 {[%clk 0:00:18]} 64. Ke3 {[%clk 0:00:08]}  Ke6 {[%clk 0:00:18]} 65. Ke2 {[%clk 0:00:07]}  Rg2 {[%clk 0:00:17]} 66. Re3+ {[%clk 0:00:07]}  Kd6 {[%clk 0:00:17]} 67. Rf3 {[%clk 0:00:08]}  R2g5 {[%clk 0:00:16]} 68. Rf6+ {[%clk 0:00:07]}  Ke7 {[%clk 0:00:15]} 69. Rf7+ {[%clk 0:00:07]}  Ke6 {[%clk 0:00:16]} 70. R7f3 {[%clk 0:00:07]}  Rg3 {[%clk 0:00:15]} 71. Ke3 {[%clk 0:00:08]}  Rxf3+ {[%clk 0:00:15]} 72. Rxf3 {[%clk 0:00:07]}  Rg2 {[%clk 0:00:15]} 73. Kf4 {[%clk 0:00:07]}  Rd2 {[%clk 0:00:14]} 74. Ke3 {[%clk 0:00:04]}  Rd1 {[%clk 0:00:15]} 75. Rf4 {[%clk 0:00:04]}  Rb1 {[%clk 0:00:15]} 76. Rxh4 {[%clk 0:00:05]}  Rxb3+ {[%clk 0:00:16]} 77. Kf4 {[%clk 0:00:05]}  Rb4 {[%clk 0:00:16]} 78. Rh6+ {[%clk 0:00:06]}  Kf7 {[%clk 0:00:16]} 79. Ke5 {[%clk 0:00:07]}  Rxa4 {[%clk 0:00:16]} 80. Rxb6 {[%clk 0:00:08]}  Ra3 {[%clk 0:00:16]} 81. h4 {[%clk 0:00:08]}  Rh3 {[%clk 0:00:16]} 82. Rh6 {[%clk 0:00:06]}  Kg7 {[%clk 0:00:15]} 83. Ra6 {[%clk 0:00:05]}  Rxh4 {[%clk 0:00:15]} 84. Rxa5 {[%clk 0:00:06]}  Kf7 {[%clk 0:00:15]} 85. Ra7+ {[%clk 0:00:06]}  Ke8 {[%clk 0:00:15]} 86. Kxd5 {[%clk 0:00:05]}  Kd8 {[%clk 0:00:16]} 87. Kc5 {[%clk 0:00:04]}  Rh5+ {[%clk 0:00:15]} 88. Kd6 {[%clk 0:00:04]}  Rh6+ {[%clk 0:00:15]} 89. Kc5 {[%clk 0:00:05]}  Rh5+ {[%clk 0:00:16]} 90. d5 {[%clk 0:00:04]}  Rh6 {[%clk 0:00:16]} 91. Rg7 {[%clk 0:00:04]}  Rf6 {[%clk 0:00:16]} 92. Kd4 {[%clk 0:00:04]}  Ra6 {[%clk 0:00:16]} 93. Ke5 {[%clk 0:00:04]}  Rh6 {[%clk 0:00:17]} 94. d6 {[%clk 0:00:04]}  Rh1 {[%clk 0:00:16]} 95. Ke6 {[%clk 0:00:04]}  Re1+ {[%clk 0:00:16]} 96. Kd5 {[%clk 0:00:05]}  Rd1+ {[%clk 0:00:17]} 97. Ke6 {[%clk 0:00:05]}  Re1+ {[%clk 0:00:17]} 98. Kd5 {[%clk 0:00:06]}  Rd1+ {[%clk 0:00:17]} 99. Ke6 {[%clk 0:00:07]}  Re1+ {[%clk 0:00:18]} 1/2-1/2


[Site "https://www.chess.com"]

[Event "Titled Tuesday Blitz February 21 Early 2023"]
[White "Lazavik, Denis"]
[Black "Sarana, Alexey"]
[WhiteFideId "13515110"]
[BlackFideId "24133795"]
[WhiteElo "2544"]
[BlackElo "2685"]
[Result "1/2-1/2"]
[Round "11"]
[TimeControl "180+2"]
[Date "2023.02.21"]
[WhiteClock "0:00:08"]
[BlackClock "0:00:23"]

1. d4 {[%clk 0:03:00]}  Nf6 {[%clk 0:03:00]} 2. c4 {[%clk 0:03:01]}  e6 {[%clk 0:03:01]} 3. Nf3 {[%clk 0:03:02]}  d5 {[%clk 0:03:02]} 4. g3 {[%clk 0:03:02]}  Bb4+ {[%clk 0:03:02]} 5. Bd2 {[%clk 0:03:03]}  Be7 {[%clk 0:03:03]} 6. Bg2 {[%clk 0:03:03]}  c6 {[%clk 0:03:02]} 7. O-O {[%clk 0:03:03]}  Nbd7 {[%clk 0:03:03]} 8. Qc2 {[%clk 0:03:02]}  h6 {[%clk 0:03:03]} 9. Rd1 {[%clk 0:03:01]}  O-O {[%clk 0:03:03]} 10. Bf4 {[%clk 0:03:01]}  a5 {[%clk 0:03:03]} 11. Ne5 {[%clk 0:02:55]}  Nh5 {[%clk 0:03:00]} 12. Bc1 {[%clk 0:02:55]}  Nhf6 {[%clk 0:03:00]} 13. Bf4 {[%clk 0:02:49]}  Nh5 {[%clk 0:03:00]} 14. Bc1 {[%clk 0:02:49]}  a4 {[%clk 0:02:59]} 15. Nc3 {[%clk 0:02:47]}  Qa5 {[%clk 0:02:57]} 16. e4 {[%clk 0:02:35]}  Nhf6 {[%clk 0:02:52]} 17. cxd5 {[%clk 0:02:28]}  cxd5 {[%clk 0:02:49]} 18. exd5 {[%clk 0:02:29]}  exd5 {[%clk 0:02:47]} 19. Bd2 {[%clk 0:02:29]}  Bb4 {[%clk 0:02:35]} 20. a3 {[%clk 0:02:26]}  Bxc3 {[%clk 0:02:35]} 21. Bxc3 {[%clk 0:02:27]}  Qb6 {[%clk 0:02:30]} 22. Re1 {[%clk 0:02:23]}  Re8 {[%clk 0:02:24]} 23. Rad1 {[%clk 0:02:18]}  Nf8 {[%clk 0:02:18]} 24. Bb4 {[%clk 0:02:15]}  Be6 {[%clk 0:02:18]} 25. Bc5 {[%clk 0:02:11]}  Qc7 {[%clk 0:02:14]} 26. Qd3 {[%clk 0:02:10]}  N8d7 {[%clk 0:02:02]} 27. Bb4 {[%clk 0:02:09]}  Rec8 {[%clk 0:01:48]} 28. h4 {[%clk 0:01:54]}  Qc2 {[%clk 0:01:36]} 29. Qxc2 {[%clk 0:01:40]}  Rxc2 {[%clk 0:01:35]} 30. Bc3 {[%clk 0:01:40]}  Nxe5 {[%clk 0:01:17]} 31. dxe5 {[%clk 0:01:39]}  Ne4 {[%clk 0:01:14]} 32. Rxe4 {[%clk 0:01:04]}  dxe4 {[%clk 0:01:15]} 33. Bxe4 {[%clk 0:01:04]}  Rxc3 {[%clk 0:00:53]} 34. bxc3 {[%clk 0:01:03]}  Rc8 {[%clk 0:00:53]} 35. Rd3 {[%clk 0:01:00]}  b6 {[%clk 0:00:43]} 36. f3 {[%clk 0:00:57]}  g6 {[%clk 0:00:42]} 37. Kf2 {[%clk 0:00:53]}  Rc5 {[%clk 0:00:40]} 38. f4 {[%clk 0:00:48]}  Rb5 {[%clk 0:00:40]} 39. Ke3 {[%clk 0:00:37]}  h5 {[%clk 0:00:30]} 40. Bc6 {[%clk 0:00:34]}  Rb3 {[%clk 0:00:29]} 41. Bxa4 {[%clk 0:00:24]}  Rxa3 {[%clk 0:00:29]} 42. Bb5 {[%clk 0:00:21]}  Kg7 {[%clk 0:00:27]} 43. c4 {[%clk 0:00:20]}  Ra1 {[%clk 0:00:26]} 44. Rd6 {[%clk 0:00:20]}  Ra3+ {[%clk 0:00:26]} 45. Rd3 {[%clk 0:00:15]}  Ra1 {[%clk 0:00:27]} 46. Rd6 {[%clk 0:00:08]}  Ra3+ {[%clk 0:00:23]} 47. Rd3 {[%clk 0:00:08]} 1/2-1/2


[Site "https://www.chess.com"]

[Event "Titled Tuesday Blitz February 21 Early 2023"]
[White "Hakobyan, Aram"]
[Black "Ibarra Jerez, Jose Carlos"]
[WhiteFideId "13306677"]
[BlackFideId "2226332"]
[WhiteElo "2608"]
[BlackElo "2563"]
[Result "1-0"]
[Round "11"]
[TimeControl "180+2"]
[Date "2023.02.21"]
[WhiteClock "0:00:54"]
[BlackClock "0:00:09"]

1. e4 {[%clk 0:03:00]}  c5 {[%clk 0:02:59]} 2. Nf3 {[%clk 0:02:59]}  Nc6 {[%clk 0:03:00]} 3. Bb5 {[%clk 0:02:58]}  e6 {[%clk 0:03:00]} 4. Bxc6 {[%clk 0:02:57]}  bxc6 {[%clk 0:02:59]} 5. d3 {[%clk 0:02:58]}  Qc7 {[%clk 0:02:58]} 6. e5 {[%clk 0:02:58]}  f6 {[%clk 0:02:48]} 7. Bf4 {[%clk 0:02:56]}  fxe5 {[%clk 0:02:46]} 8. Nxe5 {[%clk 0:02:35]}  d6 {[%clk 0:02:37]} 9. Nf3 {[%clk 0:02:32]}  e5 {[%clk 0:02:34]} 10. Bg3 {[%clk 0:02:32]}  Nf6 {[%clk 0:02:34]} 11. O-O {[%clk 0:02:31]}  Be7 {[%clk 0:02:34]} 12. Nbd2 {[%clk 0:02:30]}  O-O {[%clk 0:02:34]} 13. Re1 {[%clk 0:02:27]}  Nd5 {[%clk 0:02:25]} 14. c3 {[%clk 0:02:22]}  Rb8 {[%clk 0:02:24]} 15. d4 {[%clk 0:02:04]}  exd4 {[%clk 0:02:07]} 16. cxd4 {[%clk 0:02:04]}  cxd4 {[%clk 0:02:02]} 17. Nxd4 {[%clk 0:02:03]}  Rxb2 {[%clk 0:01:56]} 18. Nc4 {[%clk 0:02:02]}  Rb4 {[%clk 0:01:54]} 19. Rc1 {[%clk 0:01:45]}  Ba6 {[%clk 0:01:07]} 20. Ne6 {[%clk 0:01:43]}  Qc8 {[%clk 0:00:57]} 21. Nxf8 {[%clk 0:01:28]}  Rxc4 {[%clk 0:00:48]} 22. Rxc4 {[%clk 0:01:16]}  Bxc4 {[%clk 0:00:48]} 23. Ne6 {[%clk 0:01:16]}  Qa6 {[%clk 0:00:35]} 24. Qg4 {[%clk 0:01:02]}  Bf6 {[%clk 0:00:31]} 25. Nxg7 {[%clk 0:01:01]}  Qa5 {[%clk 0:00:14]} 26. Re8+ {[%clk 0:00:57]}  Kf7 {[%clk 0:00:14]} 27. Qe6+ {[%clk 0:00:55]}  Kxg7 {[%clk 0:00:09]} 28. Rg8+ {[%clk 0:00:54]}  Kh6 {[%clk 0:00:09]} 29. Qh3+ {[%clk 0:00:54]} 1-0


[Site "https://www.chess.com"]

[Event "Titled Tuesday Blitz February 21 Early 2023"]
[White "Rakhmanov, Aleksandr"]
[Black "Erigaisi Arjun"]
[WhiteFideId "4173708"]
[BlackFideId "35009192"]
[WhiteElo "2632"]
[BlackElo "2701"]
[Result "0-1"]
[Round "11"]
[TimeControl "180+2"]
[Date "2023.02.21"]
[WhiteClock "0:00:02"]
[BlackClock "0:00:46"]

1. c4 {[%clk 0:02:50]}  Nf6 {[%clk 0:02:58]} 2. Nc3 {[%clk 0:02:49]}  e5 {[%clk 0:02:58]} 3. Nf3 {[%clk 0:02:49]}  Nc6 {[%clk 0:02:58]} 4. e4 {[%clk 0:02:49]}  Bc5 {[%clk 0:02:55]} 5. Nxe5 {[%clk 0:02:48]}  Nxe5 {[%clk 0:02:56]} 6. d4 {[%clk 0:02:48]}  Bb4 {[%clk 0:02:56]} 7. dxe5 {[%clk 0:02:46]}  Nxe4 {[%clk 0:02:57]} 8. Qf3 {[%clk 0:02:47]}  Qh4 {[%clk 0:02:56]} 9. g3 {[%clk 0:02:25]}  Ng5 {[%clk 0:02:55]} 10. Qf4 {[%clk 0:01:59]}  Qxf4 {[%clk 0:02:53]} 11. gxf4 {[%clk 0:01:58]}  Ne4 {[%clk 0:02:32]} 12. Bd2 {[%clk 0:01:52]}  Nxd2 {[%clk 0:02:18]} 13. Kxd2 {[%clk 0:01:53]}  d6 {[%clk 0:02:19]} 14. a3 {[%clk 0:01:48]}  Bc5 {[%clk 0:02:19]} 15. Nb5 {[%clk 0:01:26]}  Kd8 {[%clk 0:02:13]} 16. b4 {[%clk 0:01:15]}  Bxf2 {[%clk 0:02:12]} 17. exd6 {[%clk 0:01:05]}  cxd6 {[%clk 0:02:07]} 18. Nxd6 {[%clk 0:00:48]}  Kc7 {[%clk 0:02:06]} 19. Nb5+ {[%clk 0:00:41]}  Kb8 {[%clk 0:02:05]} 20. Ke2 {[%clk 0:00:41]}  Bh4 {[%clk 0:02:02]} 21. Kf3 {[%clk 0:00:38]}  Bd7 {[%clk 0:01:57]} 22. Rg1 {[%clk 0:00:33]}  Bc6+ {[%clk 0:01:40]} 23. Kg4 {[%clk 0:00:30]}  Bf6 {[%clk 0:01:40]} 24. Rd1 {[%clk 0:00:28]}  h5+ {[%clk 0:01:40]} 25. Kf5 {[%clk 0:00:09]}  Re8 {[%clk 0:01:18]} 26. Bg2 {[%clk 0:00:09]}  Bh4 {[%clk 0:01:13]} 27. Bxc6 {[%clk 0:00:03]}  g6+ {[%clk 0:01:13]} 28. Rxg6 {[%clk 0:00:04]}  fxg6+ {[%clk 0:01:14]} 29. Kxg6 {[%clk 0:00:05]}  bxc6 {[%clk 0:01:15]} 30. Nd6 {[%clk 0:00:05]}  Rd8 {[%clk 0:01:11]} 31. f5 {[%clk 0:00:05]}  Kc7 {[%clk 0:01:08]} 32. c5 {[%clk 0:00:05]}  Be7 {[%clk 0:01:09]} 33. f6 {[%clk 0:00:04]}  Bxd6 {[%clk 0:01:10]} 34. cxd6+ {[%clk 0:00:04]}  Rxd6 {[%clk 0:01:10]} 35. Rf1 {[%clk 0:00:02]}  Kd7 {[%clk 0:00:53]} 36. h4 {[%clk 0:00:02]}  Rd4 {[%clk 0:00:46]} 0-1


[Site "https://www.chess.com"]

[Event "Titled Tuesday Blitz February 21 Early 2023"]
[White "Galchenko, Matvey"]
[Black "Makarian, Rudik"]
[WhiteFideId "24175480"]
[BlackFideId "44105681"]
[WhiteElo "2438"]
[BlackElo "2545"]
[Result "1-0"]
[Round "11"]
[TimeControl "180+2"]
[Date "2023.02.21"]
[WhiteClock "0:00:10"]
[BlackClock "0:00:08"]

1. e4 {[%clk 0:03:00]}  c5 {[%clk 0:03:00]} 2. c3 {[%clk 0:03:00]}  d5 {[%clk 0:02:59]} 3. exd5 {[%clk 0:03:00]}  Nf6 {[%clk 0:02:59]} 4. d4 {[%clk 0:03:00]}  Nxd5 {[%clk 0:02:55]} 5. Nf3 {[%clk 0:02:56]}  e6 {[%clk 0:02:53]} 6. Bd3 {[%clk 0:02:50]}  Be7 {[%clk 0:02:48]} 7. O-O {[%clk 0:02:49]}  cxd4 {[%clk 0:02:30]} 8. cxd4 {[%clk 0:02:44]}  O-O {[%clk 0:02:31]} 9. Nc3 {[%clk 0:02:45]}  Nc6 {[%clk 0:02:24]} 10. Re1 {[%clk 0:02:44]}  Nxc3 {[%clk 0:02:20]} 11. bxc3 {[%clk 0:02:45]}  b6 {[%clk 0:02:21]} 12. Qe2 {[%clk 0:02:36]}  Bb7 {[%clk 0:02:17]} 13. Qe4 {[%clk 0:02:36]}  g6 {[%clk 0:02:16]} 14. Qg4 {[%clk 0:02:32]}  Bf6 {[%clk 0:02:07]} 15. Bh6 {[%clk 0:02:28]}  Bg7 {[%clk 0:02:06]} 16. Bg5 {[%clk 0:02:28]}  Qc8 {[%clk 0:01:53]} 17. Qh4 {[%clk 0:02:24]}  f6 {[%clk 0:01:43]} 18. Bd2 {[%clk 0:02:18]}  Ne7 {[%clk 0:01:42]} 19. Qg4 {[%clk 0:02:01]}  Nf5 {[%clk 0:01:40]} 20. h4 {[%clk 0:01:34]}  Qd7 {[%clk 0:01:33]} 21. h5 {[%clk 0:01:30]}  Qf7 {[%clk 0:01:33]} 22. hxg6 {[%clk 0:01:25]}  hxg6 {[%clk 0:01:34]} 23. Re2 {[%clk 0:01:23]}  Rfe8 {[%clk 0:01:23]} 24. Rae1 {[%clk 0:01:23]}  Rad8 {[%clk 0:01:06]} 25. Qh3 {[%clk 0:00:57]}  Qd7 {[%clk 0:00:54]} 26. g4 {[%clk 0:00:38]}  Ne7 {[%clk 0:00:42]} 27. Rxe6 {[%clk 0:00:36]}  Bd5 {[%clk 0:00:38]} 28. R6e3 {[%clk 0:00:25]}  Bf7 {[%clk 0:00:36]} 29. c4 {[%clk 0:00:19]}  Nc6 {[%clk 0:00:19]} 30. d5 {[%clk 0:00:20]}  Rxe3 {[%clk 0:00:19]} 31. Rxe3 {[%clk 0:00:20]}  Ne7 {[%clk 0:00:16]} 32. Nh4 {[%clk 0:00:18]}  b5 {[%clk 0:00:14]} 33. Bb4 {[%clk 0:00:18]}  Nc8 {[%clk 0:00:13]} 34. Nxg6 {[%clk 0:00:17]}  bxc4 {[%clk 0:00:12]} 35. Nf8 {[%clk 0:00:10]}  cxd3 {[%clk 0:00:08]} 36. Qh7# {[%clk 0:00:10]} 1-0


[Site "https://www.chess.com"]

[Event "Titled Tuesday Blitz February 21 Early 2023"]
[White "Bharath Subramaniyam H"]
[Black "Kramnik, Vladimir"]
[WhiteFideId "46634827"]
[BlackFideId "4101588"]
[WhiteElo "2517"]
[BlackElo "2753"]
[Result "0-1"]
[Round "11"]
[TimeControl "180+2"]
[Date "2023.02.21"]
[WhiteClock "0:00:08"]
[BlackClock "0:00:33"]

1. e4 {[%clk 0:02:59]}  c5 {[%clk 0:02:58]} 2. Nf3 {[%clk 0:03:00]}  e6 {[%clk 0:02:58]} 3. g3 {[%clk 0:02:58]}  d5 {[%clk 0:02:57]} 4. exd5 {[%clk 0:02:58]}  exd5 {[%clk 0:02:57]} 5. d4 {[%clk 0:02:57]}  Nf6 {[%clk 0:02:57]} 6. Bg2 {[%clk 0:02:56]}  Be7 {[%clk 0:02:57]} 7. O-O {[%clk 0:02:56]}  O-O {[%clk 0:02:57]} 8. dxc5 {[%clk 0:02:54]}  Bxc5 {[%clk 0:02:56]} 9. Bg5 {[%clk 0:02:55]}  Nc6 {[%clk 0:02:53]} 10. Nc3 {[%clk 0:02:53]}  Be6 {[%clk 0:02:53]} 11. Na4 {[%clk 0:02:40]}  Be7 {[%clk 0:02:49]} 12. Be3 {[%clk 0:02:35]}  Qa5 {[%clk 0:02:38]} 13. c3 {[%clk 0:02:13]}  Bg4 {[%clk 0:02:34]} 14. Qb3 {[%clk 0:02:00]}  Rfe8 {[%clk 0:01:56]} 15. Nd4 {[%clk 0:01:30]}  Rac8 {[%clk 0:01:50]} 16. Nxc6 {[%clk 0:01:26]}  bxc6 {[%clk 0:01:46]} 17. Qc2 {[%clk 0:01:24]}  c5 {[%clk 0:01:41]} 18. Nxc5 {[%clk 0:00:57]}  Rxc5 {[%clk 0:01:41]} 19. b4 {[%clk 0:00:58]}  Qxb4 {[%clk 0:01:41]} 20. Bxc5 {[%clk 0:00:56]}  Qxc5 {[%clk 0:01:39]} 21. Rfe1 {[%clk 0:00:49]}  Be6 {[%clk 0:01:37]} 22. Rab1 {[%clk 0:00:48]}  h5 {[%clk 0:01:35]} 23. Qa4 {[%clk 0:00:47]}  Rc8 {[%clk 0:01:28]} 24. Re2 {[%clk 0:00:36]}  Qxc3 {[%clk 0:01:23]} 25. Qxa7 {[%clk 0:00:31]}  Bc5 {[%clk 0:01:19]} 26. Qa6 {[%clk 0:00:31]}  Ne4 {[%clk 0:01:11]} 27. Rf1 {[%clk 0:00:21]}  h4 {[%clk 0:01:01]} 28. Kh1 {[%clk 0:00:15]}  Nxf2+ {[%clk 0:00:52]} 29. Rexf2 {[%clk 0:00:14]}  Bxf2 {[%clk 0:00:52]} 30. Rxf2 {[%clk 0:00:13]}  hxg3 {[%clk 0:00:52]} 31. hxg3 {[%clk 0:00:13]}  Qxg3 {[%clk 0:00:52]} 32. Rf1 {[%clk 0:00:13]}  Rc2 {[%clk 0:00:44]} 33. Qa8+ {[%clk 0:00:09]}  Kh7 {[%clk 0:00:36]} 34. Be4+ {[%clk 0:00:09]}  dxe4 {[%clk 0:00:36]} 35. Qxe4+ {[%clk 0:00:10]}  f5 {[%clk 0:00:33]} 36. Qxc2 {[%clk 0:00:08]}  Bd5+ {[%clk 0:00:33]} 0-1


[Site "https://www.chess.com"]

[Event "Titled Tuesday Blitz February 21 Early 2023"]
[White "Madaminov, Mukhiddin"]
[Black "Deac, Bogdan-Daniel"]
[WhiteFideId "14210703"]
[BlackFideId "1226380"]
[WhiteElo "2422"]
[BlackElo "2700"]
[Result "0-1"]
[Round "11"]
[TimeControl "180+2"]
[Date "2023.02.21"]
[WhiteClock "0:00:02"]
[BlackClock "0:00:04"]

1. d4 {[%clk 0:03:00]}  Nf6 {[%clk 0:02:59]} 2. Nc3 {[%clk 0:02:59]}  d5 {[%clk 0:02:59]} 3. Bf4 {[%clk 0:03:00]}  a6 {[%clk 0:02:59]} 4. e3 {[%clk 0:03:00]}  e6 {[%clk 0:03:00]} 5. g4 {[%clk 0:03:00]}  Bb4 {[%clk 0:02:59]} 6. Bg2 {[%clk 0:03:00]}  O-O {[%clk 0:02:54]} 7. g5 {[%clk 0:03:00]}  Nfd7 {[%clk 0:02:54]} 8. Ne2 {[%clk 0:02:57]}  Re8 {[%clk 0:02:51]} 9. h4 {[%clk 0:02:50]}  c5 {[%clk 0:02:50]} 10. a3 {[%clk 0:02:50]}  Ba5 {[%clk 0:02:43]} 11. dxc5 {[%clk 0:02:47]}  Bc7 {[%clk 0:02:42]} 12. b4 {[%clk 0:02:36]}  b6 {[%clk 0:02:37]} 13. Bxc7 {[%clk 0:01:43]}  Qxc7 {[%clk 0:02:36]} 14. e4 {[%clk 0:01:44]}  d4 {[%clk 0:02:32]} 15. Qxd4 {[%clk 0:01:23]}  bxc5 {[%clk 0:02:31]} 16. bxc5 {[%clk 0:01:23]}  Nxc5 {[%clk 0:02:16]} 17. O-O {[%clk 0:01:20]}  Rd8 {[%clk 0:02:13]} 18. Qc4 {[%clk 0:01:12]}  Nbd7 {[%clk 0:02:11]} 19. Rfd1 {[%clk 0:01:09]}  Bb7 {[%clk 0:02:08]} 20. Rab1 {[%clk 0:01:08]}  Rac8 {[%clk 0:01:57]} 21. Na4 {[%clk 0:00:49]}  Nxa4 {[%clk 0:01:29]} 22. Qxa4 {[%clk 0:00:47]}  Nc5 {[%clk 0:01:29]} 23. Qc4 {[%clk 0:00:40]}  h6 {[%clk 0:01:17]} 24. gxh6 {[%clk 0:00:25]}  gxh6 {[%clk 0:01:15]} 25. Qc3 {[%clk 0:00:19]}  Rxd1+ {[%clk 0:01:10]} 26. Rxd1 {[%clk 0:00:19]}  Bxe4 {[%clk 0:00:58]} 27. Ng3 {[%clk 0:00:12]}  Bxg2 {[%clk 0:00:30]} 28. Nh5 {[%clk 0:00:12]}  f5 {[%clk 0:00:21]} 29. Kxg2 {[%clk 0:00:10]}  Kh7 {[%clk 0:00:11]} 30. Nf6+ {[%clk 0:00:09]}  Kg6 {[%clk 0:00:10]} 31. Kh3 {[%clk 0:00:08]}  Kf7 {[%clk 0:00:04]} 32. Nh5 {[%clk 0:00:06]}  Rg8 {[%clk 0:00:03]} 33. Qf6+ {[%clk 0:00:04]}  Ke8 {[%clk 0:00:03]} 34. Re1 {[%clk 0:00:03]}  Qc6 {[%clk 0:00:03]} 35. Ng3 {[%clk 0:00:02]}  Qf3 {[%clk 0:00:02]} 36. Rxe6+ {[%clk 0:00:02]}  Nxe6 {[%clk 0:00:02]} 37. Qxe6+ {[%clk 0:00:03]}  Kf8 {[%clk 0:00:03]} 38. Qxh6+ {[%clk 0:00:03]}  Kf7 {[%clk 0:00:03]} 39. Qh7+ {[%clk 0:00:02]}  Rg7 {[%clk 0:00:03]} 40. Qxf5+ {[%clk 0:00:03]}  Qxf5+ {[%clk 0:00:03]} 41. Nxf5 {[%clk 0:00:04]}  Rg6 {[%clk 0:00:04]} 42. Ne3 {[%clk 0:00:02]}  Rc6 {[%clk 0:00:04]} 43. c4 {[%clk 0:00:03]}  Rb6 {[%clk 0:00:04]} 44. Nd5 {[%clk 0:00:02]}  Rb3+ {[%clk 0:00:04]} 0-1


[Site "https://www.chess.com"]